{"text_format":"1","workbook":"xlsx","n_sheets":57,"sheets":["ZUL ABL Baugruppe","ABL Baugruppe","ZUL ABL Lüftungsgerät","1","2","3","4","5","6","7","8","9","10","11","12","13","14","15","16","17","18","19","20","21","22","23","24","25","26","27","28","29","30","31","32","33","34","35","36","37","38","39","40","41","42","43","44","45","46","47","48","49","50","51","52","Preisliste","Tabelle1"],"not_rendered":{"charts":0,"images":4,"macros":0,"external_links":0,"defined_names":2,"comments":0,"pivot_tables":0},"unopened":[],"bounds":{"document_bytes":16777216,"sheet_cells":100000,"rows_first":2000,"rows_last":500,"rows_between":2000,"halvings":0,"cell_chars":16384,"cell_head_chars":4096},"cells_cut":0,"cells_raw":0,"read":"whole","date_system":"1900"}

{"sheet":"ZUL ABL Baugruppe","index":0,"n_rows":85,"n_cols":26,"rows_kept":85,"cut":false,"hidden":false,"merged":[[80,2,80,3],[77,2,77,3],[84,17,89,21],[60,7,82,11],[60,12,82,16],[68,2,68,3],[69,2,69,3],[61,2,61,3],[61,17,82,21],[81,2,81,3],[82,2,82,3],[60,2,60,3],[63,2,63,3],[64,2,64,3],[65,2,65,3],[66,2,66,3],[62,2,62,3],[78,2,78,3],[58,7,58,11],[58,17,58,21],[58,12,58,16],[79,2,79,3],[67,2,67,3],[70,2,70,3],[71,2,71,3],[72,2,72,3],[73,2,73,3],[59,2,59,3],[68,5,68,6],[69,5,69,6],[74,2,74,3],[75,2,75,3],[76,2,76,3]]}
["PROJEKT: "]
[]
["MODBUS:","nein","Lackierung:","nein","180°gedreht","nein","Verlängerung:","nein","Metalltragring","nein","Raumhöhe",2.6,"m"]
[]
[]
["Wohnung","TAB","Typ","ZUL","Abluft- und Zulufträume","ANZ Whg","SN100","Summe","ZUL TV100","Summe","ABL TV100","Summe","SN125","Summe","ZUL TV125","Summe","ABL TV125","Summe","Abg.","m/Abg.","Gesamt/Whg","Summe",null,"min. Wohnfläche Wohnen","Wohnung","Schalldruckpegelkontolle"]
[null,1,"2-Zimmer 1 Gerät","rechts","Bad, Schlafen (Gerät im WZ, 40m3/h)",null,0,{"$f":"G7*F7","v":0},0,{"$f":"I7*F7","v":0},0,{"$f":"K7*F7","v":0},2,{"$f":"M7*F7","v":0},1,{"$f":"O7*F7","v":0},1,{"$f":"Q7*F7","v":0},4,8,{"$f":"S7*T7","v":32},{"$f":"U7*F7","v":0}]
[null,2,"2-Zimmer 1 Gerät","links","Bad, Schlafen (Gerät im WZ, 40m3/h)",null,0,0,0,0,0,0,2,0,1,0,1,0,4,8,32,0]
[null,3,"2-Zimmer 1 Gerät","rechts","Bad, AR, Schlafen (Gerät im WZ, 40m3/h)",null,1,0,0,0,1,0,2,0,1,0,1,0,5,8,40,0]
[null,4,"2-Zimmer 1 Gerät","links","Bad, AR, Schlafen (Gerät im WZ, 40m3/h)",null,1,0,0,0,1,0,2,0,1,0,1,0,5,8,40,0]
[null,5,"2-Zimmer 1 Gerät","rechts","Bad, WC, Schlafen (Gerät im WZ, 45m3/h)",null,1,0,0,0,1,0,2,0,1,0,1,0,5,8,40,0]
[null,6,"2-Zimmer 1 Gerät","links","Bad, WC, Schlafen (Gerät im WZ, 45m3/h)",null,1,0,0,0,1,0,2,0,1,0,1,0,5,8,40,0]
[null,7,"2-Zimmer 1 Gerät","rechts","Bad, WC, AR, Schlafen (Gerät im WZ, 55m3/h)",null,2,0,0,0,2,0,2,0,1,0,1,0,6,8,48,0]
[null,8,"2-Zimmer 1 Gerät","links","Bad, WC, AR, Schlafen (Gerät im WZ, 55m3/h)",null,2,0,0,0,2,0,2,0,1,0,1,0,6,8,48,0]
[null,9,"2-Zimmer 1 Gerät","rechts","Bad, WC, Schlafen, Wohnen (Gerät im WZ, 60m3/h)",null,2,0,1,0,1,0,2,0,1,0,1,0,6,8,48,0]
[null,10,"2-Zimmer 1 Gerät","links","Bad, WC, Schlafen, Wohnen (Gerät im WZ, 60m3/h)",null,2,0,1,0,1,0,2,0,1,0,1,0,6,8,48,0]
[null,11,"2-Zimmer 1 Gerät","rechts","Bad, WC, AR, Schlafen, Wohnen (Gerät im WZ, 60m3/h)",null,3,0,1,0,2,0,2,0,1,0,1,0,7,8,56,0]
[null,12,"2-Zimmer 1 Gerät","links","Bad, WC, AR, Schlafen, Wohnen (Gerät im WZ, 60m3/h)",null,3,0,1,0,2,0,2,0,1,0,1,0,7,8,56,0]
[null,13,"2-Zimmer 1 Gerät","rechts","Bad, Küche, Schlafen, Wohnen (Gerät im WZ, 60m3/h)",null,1,0,1,0,0,0,3,0,1,0,2,0,7,8,56,0]
[null,14,"2-Zimmer 1 Gerät","links","Bad, Küche, Schlafen, Wohnen (Gerät im WZ, 60m3/h)",null,1,0,1,0,0,0,3,0,1,0,2,0,7,8,56,0]
[null,15,"2-Zimmer 1 Gerät","rechts","Bad, Küche, AR, Schlafen, Wohnen (Gerät im WZ, 70m3/h)",null,1,0,0,0,1,0,4,0,2,0,2,0,9,8,72,0,null,null,null,{"$f":"L3*X21","v":0}]
[null,16,"2-Zimmer 1 Gerät","links","Bad, Küche, AR, Schlafen, Wohnen (Gerät im WZ, 70m3/h)",null,1,0,0,0,1,0,4,0,2,0,2,0,9,8,72,0,null,null,null,{"$f":"L3*X22","v":0}]
[null,17,"2-Zimmer 1 Gerät","rechts","Bad, Küche, WC, Schlafen, Wohnen (Gerät im WZ, 75m3/h)",null,1,0,0,0,1,0,4,0,2,0,2,0,9,8,72,0,null,null,null,{"$f":"L3*X23","v":0}]
[null,18,"2-Zimmer 1 Gerät","links","Bad, Küche, WC, Schlafen, Wohnen (Gerät im WZ, 75m3/h)",null,1,0,0,0,1,0,4,0,2,0,2,0,9,8,72,0,null,null,null,{"$f":"L3*X24","v":0}]
[null,19,"3-Zimmer 1 Gerät","rechts","Bad, WC, Schlafen, Kind (Gerät im WZ, 60m3/h)",null,2,0,1,0,1,0,2,0,1,0,1,0,6,8,48,0]
[null,20,"3-Zimmer 1 Gerät","links","Bad, WC, Schlafen, Kind (Gerät im WZ, 60m3/h)",null,2,0,1,0,1,0,2,0,1,0,1,0,6,8,48,0]
[null,21,"3-Zimmer 1 Gerät","rechts","Bad, WC, AR, Schlafen, Kind (Gerät im WZ, 60m3/h)",null,3,0,1,0,2,0,2,0,1,0,1,0,7,8,56,0]
[null,22,"3-Zimmer 1 Gerät","links","Bad, WC, AR, Schlafen, Kind (Gerät im WZ, 60m3/h)",null,3,0,1,0,2,0,2,0,1,0,1,0,7,8,56,0]
[null,23,"3-Zimmer 1 Gerät","rechts","Bad, Küche, Schlafen, Kind (Gerät im WZ, 60m3/h)",null,1,0,1,0,0,0,3,0,1,0,2,0,7,8,56,0]
[null,24,"3-Zimmer 1 Gerät","links","Bad, Küche, Schlafen, Kind (Gerät im WZ, 60m3/h)",null,1,0,1,0,0,0,3,0,1,0,2,0,7,8,56,0]
[null,25,"3-Zimmer 1 Gerät","rechts","Bad, Küche, AR, Schlafen, Kind (Gerät im WZ, 70m3/h)",null,2,0,1,0,1,0,3,0,1,0,2,0,8,8,64,0,null,null,null,{"$f":"L3*X31","v":0}]
[null,26,"3-Zimmer 1 Gerät","links","Bad, Küche, AR, Schlafen, Kind (Gerät im WZ, 70m3/h)",null,2,0,1,0,1,0,3,0,1,0,2,0,8,8,64,0,null,null,null,{"$f":"L3*X32","v":0}]
[null,27,"3-Zimmer 1 Gerät","rechts","Bad, Küche, WC, Schlafen, Kind (Gerät im WZ, 75m3/h)",null,2,0,1,0,1,0,3,0,1,0,2,0,8,8,64,0,null,null,null,{"$f":"L3*X33","v":0}]
[null,28,"3-Zimmer 1 Gerät","links","Bad, Küche, WC, Schlafen, Kind (Gerät im WZ, 75m3/h)",null,2,0,1,0,1,0,3,0,1,0,2,0,8,8,64,0,null,null,null,{"$f":"L3*X34","v":0}]
[null,29,"3-Zimmer 1 Gerät","rechts","Bad, WC, Schlafen, Kind, Wohnen (Gerät im WZ, 75m3/h)",null,3,0,2,0,1,0,2,0,1,0,1,0,7,8,56,0,null,null,null,{"$f":"L3*X35","v":0}]
[null,30,"3-Zimmer 1 Gerät","links","Bad, WC, Schlafen, Kind, Wohnen (Gerät im WZ, 75m3/h)",null,3,0,2,0,1,0,2,0,1,0,1,0,7,8,56,0,null,null,null,{"$f":"L3*X36","v":0}]
[null,31,"3-Zimmer 1 Gerät","rechts","Bad, WC, AR, Schlafen, Kind, Wohnen (Gerät im WZ, 75m3/h)",null,4,0,2,0,2,0,2,0,1,0,1,0,8,8,64,0,null,null,null,{"$f":"L3*X37","v":0}]
[null,32,"3-Zimmer 1 Gerät","links","Bad, WC, AR, Schlafen, Kind, Wohnen (Gerät im WZ, 75m3/h)",null,4,0,2,0,2,0,2,0,1,0,1,0,8,8,64,0,null,null,null,{"$f":"L3*X38","v":0}]
[null,33,"3-Zimmer 1 Gerät","rechts","Bad, Küche, Schlafen, Kind, Wohnen (Gerät im WZ, 75m3/h)",null,2,0,2,0,0,0,3,0,1,0,2,0,8,8,64,0,null,null,null,{"$f":"L3*X39","v":0}]
[null,34,"3-Zimmer 1 Gerät","links","Bad, Küche, Schlafen, Kind, Wohnen (Gerät im WZ, 75m3/h)",null,2,0,2,0,0,0,3,0,1,0,2,0,8,8,64,0,null,null,null,{"$f":"L3*X40","v":0}]
[null,35,"3-Zimmer 1 Gerät","rechts","Bad, Küche, AR, Schlafen, Kind, Wohnen (Gerät im WZ, 75m3/h)",null,3,0,2,0,1,0,3,0,1,0,2,0,9,8,72,0,null,null,null,{"$f":"L3*X41","v":0}]
[null,36,"3-Zimmer 1 Gerät","links","Bad, Küche, AR, Schlafen, Kind, Wohnen (Gerät im WZ, 75m3/h)",null,3,0,2,0,1,0,3,0,1,0,2,0,9,8,72,0,null,null,null,{"$f":"L3*X42","v":0}]
[null,37,"3-Zimmer 1 Gerät","rechts","Bad, Küche, WC, Schlafen, Kind, Wohnen (Gerät im WZ, 75m3/h)",null,3,0,2,0,1,0,3,0,1,0,2,0,9,8,72,0,null,null,null,{"$f":"L3*X43","v":0}]
[null,38,"3-Zimmer 1 Gerät","links","Bad, Küche, WC, Schlafen, Kind, Wohnen (Gerät im WZ, 75m3/h)",null,3,0,2,0,1,0,3,0,1,0,2,0,9,8,72,0,null,null,null,{"$f":"L3*X44","v":0}]
[null,39,"4-Zimmer 1 Gerät","rechts","Bad, WC, Schlafen, Kind 1, Kind 2 (Gerät im WZ, 60m3/h)",null,3,0,2,0,1,0,2,0,1,0,1,0,7,8,56,0]
[null,40,"4-Zimmer 1 Gerät","links","Bad, WC, Schlafen, Kind 1, Kind 2 (Gerät im WZ, 60m3/h)",null,3,0,2,0,1,0,2,0,1,0,1,0,7,8,56,0]
[null,41,"4-Zimmer 1 Gerät","rechts","Bad, WC, AR, Schlafen, Kind 1, Kind 2 (Gerät im WZ, 60m3/h)",null,4,0,2,0,2,0,2,0,1,0,1,0,8,8,64,0]
[null,42,"4-Zimmer 1 Gerät","links","Bad, WC, AR, Schlafen, Kind 1, Kind 2 (Gerät im WZ, 60m3/h)",null,4,0,2,0,2,0,2,0,1,0,1,0,8,8,64,0]
[null,43,"4-Zimmer 1 Gerät","rechts","Bad, Küche, Schlafen, Kind 1, Kind 2 (Gerät im WZ, 60m3/h)",null,2,0,2,0,0,0,3,0,1,0,2,0,8,8,64,0]
[null,44,"4-Zimmer 1 Gerät","links","Bad, Küche, Schlafen, Kind 1, Kind 2 (Gerät im WZ, 60m3/h)",null,2,0,2,0,0,0,3,0,1,0,2,0,8,8,64,0]
[null,45,"4-Zimmer 1 Gerät","rechts","Bad, Küche, AR, Schlafen, Kind 1, Kind 2 (Gerät im WZ, 70m3/h)",null,3,0,2,0,1,0,3,0,1,0,2,0,9,8,72,0,null,null,null,{"$f":"L3*X51","v":0}]
[null,46,"4-Zimmer 1 Gerät","links","Bad, Küche, AR, Schlafen, Kind 1, Kind 2 (Gerät im WZ, 70m3/h)",null,3,0,2,0,1,0,3,0,1,0,2,0,9,8,72,0,null,null,null,{"$f":"L3*X52","v":0}]
[null,47,"4-Zimmer 2 Geräte","rechts","Bad, Küche, WC, Schlafen, Kind 1, Kind 2, Wohnen (Gerät im WZ und SZ, 115m3/h)",null,3,0,2,0,1,0,4,0,2,0,2,0,11,8,88,0,null,null,null,{"$f":"L3*X53","v":0}]
[null,48,"4-Zimmer 2 Geräte","links","Bad, Küche, WC, Schlafen, Kind 1, Kind 2, Wohnen (Gerät im WZ und SZ, 115m3/h)",null,3,0,2,0,1,0,4,0,2,0,2,0,11,8,88,0,null,null,null,{"$f":"L3*X54","v":0}]
[null,49,"4-Zimmer 2 Geräte","rechts","Bad, Küche, WC, AR, Schlafen, Kind 1, Kind 2, Wohnen (Gerät im WZ und SZ, 115m3/h)",null,4,0,2,0,2,0,4,0,2,0,2,0,12,8,96,0,null,null,null,{"$f":"L3*X55","v":0}]
[null,50,"4-Zimmer 2 Geräte","links","Bad, Küche, WC, AR, Schlafen, Kind 1, Kind 2, Wohnen (Gerät im WZ und SZ, 115m3/h)",null,4,0,2,0,2,0,4,0,2,0,2,0,12,8,96,0,null,null,null,{"$f":"L3*X56","v":0}]
[null,null,null,null,null,{"$f":"SUM(F7:F56)","v":0},null,{"$f":"SUM(H7:H56)","v":0},null,{"$f":"SUM(J7:J56)","v":0},null,{"$f":"SUM(L7:L56)","v":0},null,{"$f":"SUM(N7:N56)","v":0},null,{"$f":"SUM(P7:P56)","v":0},null,{"$f":"SUM(R7:R56)","v":0},null,null,null,{"$f":"SUM(V7:V56)","v":0}]
[]
["Stück","EH","Art.-Nr.",null,"Artikel","Preis/EH","Gesamt",{"$f":"IF(F3=\"ja\",\"Gerät rechts - ZUL links\", \"Gerät rechts - ZUL rechts\")","v":"Gerät rechts - ZUL rechts"},null,null,null,null,{"$f":"IF(F3=\"ja\",\"Gerät rechts - ZUL rechts über 3-fach-Kreuz\", \"Gerät rechts - ZUL links über 3-fach-Kreuz\")","v":"Gerät rechts - ZUL links über 3-fach-Kreuz"},null,null,null,null,"Aussenansicht"]
[{"$f":"(F7+F8+F9+F10+F11+F12+F13+F14+F15+F16+F17+F18+F19+F20+F21+F22+F23+F24+F25+F26+F27+F28+F29+F30+F31+F32+F33+F34+F35+F36+F37+F38+F39+F40+F41+F42+F43+F44+F45+F46+F47+F48+F49+F50+F51+F52)+(F53+F54+F55+F56)*2","v":0},"St.","KLL70VT252",null,"ZUL/ABL Verteilereinheit 25cm",{"$f":"VLOOKUP(C60,db_Preise5,2)","v":175},{"$f":"A60*F60","v":0}]
[{"$f":"(F7+F8+F9+F10+F11+F12+F13+F14+F15+F16+F17+F18+F19+F20+F21+F22+F23+F24+F25+F26+F27+F28+F29+F30+F31+F32+F33+F34+F35+F36+F37+F38+F39+F40+F41+F42+F43+F44+F45+F46+F47+F48+F49+F50+F51+F52)+(F53+F54+F55+F56)*2","v":0},"St.","KLL70BGOR25",null,"Baugruppe Air70 rechts 25cm",1620,0,{"$f":"IF(F3=\"nein\",_xlfn.IMAGE(\"https://kl-lufttechnik.at/KL70/img/Kalkulationssoftware/AIR70_BG_ZULABL_oben.png\"),_xlfn.IMAGE(\"https://kl-lufttechnik.at/KL70/img/Kalkulationssoftware/AIR70_BG_ZULABL_unten_180.png\"))","v":{"$error":"#VALUE!"}},null,null,null,null,{"$f":"IF(F3=\"nein\",_xlfn.IMAGE(\"https://kl-lufttechnik.at/KL70/img/Kalkulationssoftware/AIR70_BG_ZULABL_oben.png\"),_xlfn.IMAGE(\"https://kl-lufttechnik.at/KL70/img/Kalkulationssoftware/AIR70_BG_ZULABL_unten_180.png\"))","v":{"$error":"#VALUE!"}}]
[{"$f":"IF(H3=\"ja\",A61,\"0\")","v":"0"},"St.","KLL70WAER110",null,"Außen- und Fortluft-Wandausgleichselement rund 11cm",60,0,null,null,null,null,null,null,null,null,null,null,{"$f":"_xlfn.IMAGE(\"https://kl-lufttechnik.at/KL70/img/Kalkulationssoftware/AIR70_AULFOL_SDE.png\")","v":{"$error":"#VALUE!"}}]
[{"$f":"IF(J3=\"ja\",A61,\"0\")","v":"0"},"St.","KLLBTMTR",null,"Metalltragring",10.8,0]
[{"$f":"(F7+F8+F9+F10+F11+F12+F13+F14+F15+F16+F17+F18+F19+F20+F21+F22+F23+F24+F25+F26+F27+F28+F29+F30+F31+F32+F33+F34+F35+F36+F37+F38+F39+F40+F41+F42+F43+F44+F45+F46+F47+F48+F49+F50+F51+F52)*2+(F53+F54+F55+F56)*4","v":0},"St.","KLLKUNI100",null,"Doppelnippel DN100",5.23,0]
[{"$f":"ROUNDUP(W65/25,0)","v":0},"St.","KLLAIRSF20",null,"Bauteilfugenabdichtungsband innen",101.65,0,null,null,null,null,null,null,null,null,null,null,null,null,null,null,null,{"$f":"(F7+F8+F9+F10+F11+F12+F13+F14+F15+F16+F17+F18+F19+F20+F21+F22+F23+F24+F25+F26+F27+F28+F29+F30+F31+F32+F33+F34+F35+F36+F37+F38+F39+F40+F41+F42+F43+F44+F45+F46+F47+F48+F49+F50+F51+F52)*5.2+(F53+F54+F55+F56)*10.4","v":0}]
[{"$f":"ROUNDUP(W65/25,0)","v":0},"St.","KLLAIRSF2",null,"Bauteilfugenabdichtungsband aussen",101.65,0]
[{"$f":"(F7+F8+F9+F10+F11+F12+F13+F14+F15+F16+F17+F18+F19+F20+F21+F22+F23+F24+F25+F26+F27+F28+F29+F30+F31+F32+F33+F34+F35+F36+F37+F38+F39+F40+F41+F42+F43+F44+F45+F46+F47+F48+F49+F50+F51+F52)+(F53+F54+F55+F56)*2","v":0},"St.","KLL70UAD",null,"Abdeckung Glas weiß",128,0]
[{"$f":"(F7+F8+F9+F10+F11+F12+F13+F14+F15+F16+F17+F18+F19+F20+F21+F22+F23+F24+F25+F26+F27+F28+F29+F30+F31+F32+F33+F34+F35+F36+F37+F38+F39+F40+F41+F42+F43+F44+F45+F46+F47+F48+F49+F50+F51+F52)+(F53+F54+F55+F56)*2","v":0},"St.",{"$f":"IF(F3=\"nein\", \"KLL70FLAAF\", \"KLL70FLAAF180\")","v":"KLL70FLAAF"},null,{"$f":"IF(C68=\"KLL70FLAAF\",\"Fassadenanschluss AUL/FOL\",\"Fassadenanschluss AUL/FOL 180° gedreht\")","v":"Fassadenanschluss AUL/FOL"},129,0]
[{"$f":"IF(D3=\"ja\",A68,\"-\")","v":"-"},"St.","-",null,"Lackierung des Fassadenanschlusses in RAL-Farbe","Preis auf Anfrage"]
[{"$f":"IF(A69=\"-\",\"-\",1)","v":"-"},"St.","-",null,"Mustergitter","Preis auf Anfrage"]
[{"$f":"H57","v":0},"St.","KLLZSN10075",null,"Saugnische 100",{"$f":"VLOOKUP(C71,db_Preise5,2)","v":13.91},{"$f":"A71*F71","v":0}]
[{"$f":"N57","v":0},"St.","KLLZSN125752",null,"Saugnische 125",25.64,0]
[{"$f":"H57","v":0},"St.",{"$f":"IF(F3=\"nein\",\"KLLZSNFL100\",\"KLLZSNVL100\")","v":"KLLZSNFL100"},null,{"$f":"IF(C73=\"KLLZSNFL100\", \"Flansch 100\", \"Verlängerung 100\")","v":"Flansch 100"},6.44,0]
[{"$f":"N57","v":0},"St.",{"$f":"IF(F3=\"nein\",\"KLLZSNFL125\",\"KLLZSNVL125\")","v":"KLLZSNFL125"},null,{"$f":"IF(C74=\"KLLZSNFL125\", \"Flansch 125\", \"Verlängerung 125\")","v":"Flansch 125"},8.51,0]
[{"$f":"J57","v":0},"St.",{"$f":"IF(F3=\"nein\",\"KLLZZULV100\", \"KLLZULVW100\")","v":"KLLZZULV100"},null,{"$f":"IF(C75=\"KLLZZULV100\", \"ZUL-Tellerventil 100\", \"ZUL-Ventil 100 Wandmontage\")","v":"ZUL-Tellerventil 100"},5.61,0]
[{"$f":"P57","v":0},"St.",{"$f":"IF(F3=\"nein\",\"KLLZZULV125\", \"KLLZULVW125\")","v":"KLLZZULV125"},null,{"$f":"IF(C76=\"KLLZZULV125\", \"ZUL-Tellerventil 125\", \"ZUL-Ventil 125 Wandmontage\")","v":"ZUL-Tellerventil 125"},6.95,0]
[{"$f":"L57","v":0},"St.","KLLZABLV100",null,"ABL-Tellerventil 100",5.61,0]
[{"$f":"R57","v":0},"St.","KLLZABLV125",null,"ABL-Tellerventil 125",6.95,0]
[{"$f":"F13+F14+F17+F18+F19+F20+(F21+F22+F23+F24)*3+F27+F28+F29+F30+(F31+F32+F33+F34)*2+F35+F36+(F37+F38+F39+F40)*2+(F41+F42+F43+F44)*3+F45+F46+(F47+F48+F49+F50)*2+(F51+F52)*3+F53+F54+(F55+F56)*2","v":0},"St.","PKEA75/45",null,"Polokal-T-Stück 45° 75mm",16.78,0]
[{"$f":"ROUNDUP(V57/5,-1)*5","v":0},"m","KLLZSCHL75",null,"Kunststoffschlauch 75mm",5.96,0]
[{"$f":"ROUNDDOWN(A80/51,0)+A79","v":0},"St.","KLLZVEM75",null,"Verbindungsmuffe 75mm",5.19,0]
[{"$f":"F8+F10+F12+F14+F16+F18+F20+F22+F24+F26+F28+F30+F32+F34+F36+F38+F40+F42+F44+F46+F48+F50+F52+(F54+F56)*2","v":0},"St.","KLLZKZ753",null,"3-fach-Kreuzungsstück DN75",188,0]
[{"$f":"F57","v":0},"St.","HOIBNKL70W1",null,"Inbetriebnahme ",165,0]
[null,null,null,null,null,"SUMME",{"$f":"SUM(G60:G83)","v":0}]
[null,null,null,null,null,null,null,null,null,null,null,null,null,null,null,null,null,"Schallgedämmter Außen/Fortluftanschluss über die Fassade                                                           Mindest-Gesamtwandstärke: 39,5cm                                                     (ohne Außenputz)"]

{"sheet":"ABL Baugruppe","index":1,"n_rows":33,"n_cols":22,"rows_kept":33,"cut":false,"hidden":false,"merged":[[32,12,37,16],[11,2,11,3],[12,2,12,3],[15,2,15,3],[16,2,16,3],[17,2,17,3],[18,2,18,3],[19,2,19,3],[22,2,22,3],[23,2,23,3],[24,2,24,3],[25,2,25,3],[20,2,20,3],[21,2,21,3],[20,5,20,6],[21,5,21,6],[28,2,28,3],[29,2,29,3],[30,2,30,3],[14,2,14,3],[13,2,13,3],[5,2,5,3],[6,2,6,3],[7,2,7,3],[26,2,26,3],[27,2,27,3],[30,5,30,6],[10,7,10,11],[10,12,10,16],[12,7,30,11],[12,12,30,16]]}
["PROJEKT: "]
[]
["MODBUS:","nein","Lackierung:","nein","180°gedreht","nein","Verlängerung:","nein","Metalltragring","nein"]
[]
[]
["Wohnung","TAB","Typ",null,"Abluft- und Zulufträume","ANZ Whg","SN100","Summe","ZUL TV100","Summe","ABL TV100","Summe","SN125","Summe","ZUL V125","Summe","ABL TV125","Summe","Abg.","m/Abg.","Gesamt/Whg","Summe"]
[null,51,"1-Zimmer",null,"Bad, Schlafen (Gerät im SZ, 40m3/h)",null,0,{"$f":"G7*F7","v":0},0,{"$f":"I7*F7","v":0},0,{"$f":"K7*F7","v":0},1,{"$f":"M7*F7","v":0},0,{"$f":"O7*F7","v":0},1,{"$f":"Q7*F7","v":0},2,8,{"$f":"S7*T7","v":16},{"$f":"U7*F7","v":0}]
[null,52,"1-Zimmer",null,"WC, Bad, Schlafen (Gerät im SZ, 45m3/h)",null,1,0,0,0,1,0,1,0,0,0,1,0,3,8,24,0]
[null,null,null,null,null,{"$f":"SUM(F7:F8)","v":0},null,{"$f":"SUM(H7:H8)","v":0},null,{"$f":"SUM(J7:J8)","v":0},null,{"$f":"SUM(L7:L8)","v":0},null,{"$f":"SUM(N7:N8)","v":0},null,{"$f":"SUM(P7:P8)","v":0},null,{"$f":"SUM(R7:R8)","v":0},null,null,null,{"$f":"SUM(V7:V8)","v":0}]
[]
["Stück","EH","Art.-Nr.",null,"Artikel","Preis/EH","Gesamt","Gerät ",null,null,null,null,"Aussenansicht"]
[{"$f":"F9","v":0},"St.","KLL70VT25",null,"Verteilereinheit 25cm inkl. Ausgleichselement",{"$f":"VLOOKUP(C12,db_Preise5,2)","v":115},{"$f":"A12*F12","v":0}]
[{"$f":"F9","v":0},"St.","KLL70BG25",null,"Baugruppe Air70 25cm",1510,{"$f":"A13*F13","v":0},{"$f":"IF(F3=\"ja\",_xlfn.IMAGE(\"https://kl-lufttechnik.at/KL70/img/Kalkulationssoftware/AIR70_BG_ABL_unten_180.png\"),_xlfn.IMAGE(\"https://kl-lufttechnik.at/KL70/img/Kalkulationssoftware/AIR70_BG_ABL_oben.png\"))","v":{"$error":"#VALUE!"}},null,null,null,null,{"$f":"_xlfn.IMAGE(\"https://kl-lufttechnik.at/KL70/img/Kalkulationssoftware/AIR70_AULFOL_SDE.png\")","v":{"$error":"#VALUE!"}}]
[{"$f":"IF(H3=\"ja\",A13,\"0\")","v":"0"},"St.","KLL70WAER110",null,"Außen- und Fortluft-Wandausgleichselement rund 11cm",60,0]
[{"$f":"IF(J3=\"ja\",A13,\"0\")","v":"0"},"St.","KLLBTMTR",null,"Metalltragring",10.8,0]
[{"$f":"F9","v":0},"St.","KLLKUNI100",null,"Doppelnippel DN100",5.23,0]
[{"$f":"ROUNDUP(F9*5.2/25,0)","v":0},"St.","KLLAIRSF20",null,"Bauteilfugenabdichtungsband innen",101.65,0]
[{"$f":"ROUNDUP(F9*5.2/25,0)","v":0},"St.","KLLAIRSF2",null,"Bauteilfugenabdichtungsband aussen",101.65,0]
[{"$f":"F9","v":0},"St.",{"$f":"IF(F3=\"nein\", \"KLL70UIB\", \"KLL70UIB180\")","v":"KLL70UIB"},null,{"$f":"IF(C19=\"KLL70UIB\",\"Innenblende glas weiß (ZUL unten)\",\"Innenblende glas weiß (ZUL oben)\")","v":"Innenblende glas weiß (ZUL unten)"},249,0]
[{"$f":"F9","v":0},"St.",{"$f":"IF(F3=\"nein\", \"KLL70FLAAF\", \"KLL70FLAAF180\")","v":"KLL70FLAAF"},null,{"$f":"IF(C20=\"KLL70FLAAF\",\"Fassadenanschluss AUL/FOL\",\"Fassadenanschluss AUL/FOL 180° gedreht\")","v":"Fassadenanschluss AUL/FOL"},129,0]
[{"$f":"IF(D3=\"ja\",A20,\"-\")","v":"-"},"St.","-",null,"Lackierung des Fassadenanschlusses in RAL-Farbe","Preis auf Anfrage"]
[{"$f":"IF(A21=\"-\",\"-\",1)","v":"-"},"St.","-",null,"Mustergitter","Preis auf Anfrage"]
[{"$f":"H9","v":0},"St.","KLLZSN10075",null,"Saugnische 100",{"$f":"VLOOKUP(C23,db_Preise5,2)","v":13.91},0]
[{"$f":"N9","v":0},"St.","KLLZSN125752",null,"Saugnische 125",25.64,0]
[{"$f":"H9","v":0},"St.",{"$f":"IF(F3=\"nein\",\"KLLZSNFL100\",\"KLLZSNVL100\")","v":"KLLZSNFL100"},null,{"$f":"IF(C25=\"KLLZSNFL100\", \"Flansch 100\", \"Verlängerung 100\")","v":"Flansch 100"},6.44,0]
[{"$f":"N9","v":0},"St.",{"$f":"IF(F3=\"nein\",\"KLLZSNFL125\",\"KLLZSNVL125\")","v":"KLLZSNFL125"},null,{"$f":"IF(C26=\"KLLZSNFL125\", \"Flansch 125\", \"Verlängerung 125\")","v":"Flansch 125"},8.51,0]
[{"$f":"L9","v":0},"St.","KLLZABLV100",null,"ABL-Tellerventil 100",5.61,0]
[{"$f":"R9","v":0},"St.","KLLZABLV125",null,"ABL-Tellerventil 125",6.95,0]
[{"$f":"ROUNDUP(V9/5,-1)*5","v":0},"m","KLLZSCHL75",null,"Kunststoffschlauch 75mm",5.96,0]
[{"$f":"ROUNDDOWN(A29/51,0)","v":0},"St.","KLLZVEM75",null,"Verbindungsmuffe 75mm",5.19,0]
[{"$f":"F9","v":0},"St.",null,null,"Inbetriebnahme bei Bedarf auf Anfrage","Preis auf Anfrage"]
[null,null,null,null,null,"SUMME",{"$f":"SUM(G12:G31)","v":0}]
[null,null,null,null,null,null,null,null,null,null,null,null,"Schallgedämmter Außen/Fortluftanschluss über die Fassade                                                           Mindest-Gesamtwandstärke: 39,5cm                                                     (ohne Außenputz)"]

{"sheet":"ZUL ABL Lüftungsgerät","index":2,"n_rows":24,"n_cols":13,"rows_kept":24,"cut":false,"hidden":false,"merged":[[11,7,11,11],[11,12,11,16],[7,2,7,3],[21,2,21,3],[23,12,28,16],[19,2,19,3],[20,2,20,3],[12,2,12,3],[12,7,21,11],[12,12,21,16],[13,2,13,3],[14,2,14,3],[15,2,15,3],[16,2,16,3],[17,2,17,3],[18,2,18,3],[31,5,31,6],[19,5,19,6],[20,5,20,6],[5,2,5,3],[6,2,6,3],[8,2,8,3],[21,5,21,6]]}
["PROJEKT: "]
[]
["MODBUS:","nein","Lackierung:","nein","Verlängerung:","nein","Metalltragring","nein"]
[]
[]
["Wohnung","TAB","Typ",null,"Abluft- und Zulufträume","ANZ Whg"]
[null,null,"2-Zimmer",null,"Schlafen (Gerät im SZ, 40m3/h)"]
[null,null,"3-Zimmer",null,"Schlafen (Gerät im SZ, 40m3/h), Kind (Gerät im KZ, 20m3/h)"]
[null,null,"4-Zimmer",null,"Schlafen (Gerät im SZ, 40m3/h), 2xKind (Gerät im KZ, 20m3/h)"]
[null,null,null,null,null,{"$f":"SUM(F7:F9)","v":0}]
[]
["Stück","EH","Art.-Nr.",null,"Artikel","Preis/EH","Gesamt","Gerät ",null,null,null,null,"Aussenansicht"]
[{"$f":"F7+F8*2+F9*3","v":0},"St.","KLL70E",null,"Lüftungsgerät dezentral Unterputz",{"$f":"VLOOKUP(C13,db_Preise5,2)","v":1340},{"$f":"A13*F13","v":0},{"$f":"_xlfn.IMAGE(\"https://kl-lufttechnik.at/KL70/img/Kalkulationssoftware/AIR70_Unterputz.png\")","v":{"$error":"#VALUE!"}},null,null,null,null,{"$f":"_xlfn.IMAGE(\"https://kl-lufttechnik.at/KL70/img/Kalkulationssoftware/AIR70_AULFOL_SDE.png\")","v":{"$error":"#VALUE!"}}]
[{"$f":"IF(F3=\"ja\",A13,\"0\")","v":"0"},"St.","KLL70WAER110",null,"Außen- und Fortluft-Wandausgleichselement rund 11cm",60,{"$f":"A14*F14","v":0}]
[{"$f":"IF(H3=\"ja\",A13,\"0\")","v":"0"},"St.","KLLBTMTR",null,"Metalltragring",10.8,0]
[{"$f":"ROUNDUP(A13*3.2/25,0)","v":0},"St.","KLLAIRSF20",null,"Bauteilfugenabdichtungsband innen",101.65,0]
[{"$f":"ROUNDUP(A13*3.2/25,0)","v":0},"St.","KLLAIRSF2",null,"Bauteilfugenabdichtungsband aussen",101.65,0]
[{"$f":"A13","v":0},"St.","KLL70UIBZA",null,"Innenblende Glas weiß (ZUL/ABL unten)",276,0]
[{"$f":"A13","v":0},"St.","KLL70FLAAF",null,"Fassadenanschluss AUL/FOL",129,0]
[{"$f":"IF(D3=\"ja\",A19,\"-\")","v":"-"},"St.","-",null,"Lackierung des Fassadenanschlusses in RAL-Farbe","Preis auf Anfrage"]
[{"$f":"IF(A20=\"-\",\"-\",1)","v":"-"},"St.","-",null,"Mustergitter","Preis auf Anfrage"]
[{"$f":"A13","v":0},"St.",null,null,"Inbetriebnahme bei Bedarf auf Anfrage","Preis auf Anfrage"]
[null,null,null,null,null,"SUMME",{"$f":"SUM(G13:G22)","v":0}]
[null,null,null,null,null,null,null,null,null,null,null,null,"Schallgedämmter Außen/Fortluftanschluss über die Fassade                                                           Mindest-Gesamtwandstärke: 39,5cm                                                     (ohne Außenputz)"]

{"sheet":"1","index":3,"n_rows":15,"n_cols":9,"rows_kept":15,"cut":false,"hidden":false,"merged":[[2,1,2,4]]}
[1,"2-Zimmer Wohnung","1 Gerät","rechts"]
["Projekt",{"$f":"'ZUL ABL Baugruppe'!B1","v":0}]
["BG ZUL/ABL",{"$f":"'ZUL ABL Baugruppe'!A7","v":0}]
[null,"ZUL","Schlafen","40m3/h"]
[]
[null,"ABL","Bad","40m3/h"]
[]
[null,"Stufe 1:","30m3/h"]
[null,"Stufe 2:","40m3/h"]
[null,"Stufe 3:","50m3/h"]
[]
[null,"MODBUS:",{"$f":"'ZUL ABL Baugruppe'!B3","v":"nein"}]
[]
["Anschlussschema",null,"Standard",null,null,null,null,null,"180° gedreht"]
["Gerät im Wohnzimmer"]

{"sheet":"2","index":4,"n_rows":15,"n_cols":9,"rows_kept":15,"cut":false,"hidden":false,"merged":[[2,1,2,4]]}
[2,"2-Zimmer Wohnung","1 Gerät","links"]
["Projekt",{"$f":"'ZUL ABL Baugruppe'!B1","v":0}]
["BG ZUL/ABL",{"$f":"'ZUL ABL Baugruppe'!A8","v":0}]
[null,"ZUL","Schlafen","40m3/h"]
[]
[null,"ABL","Bad","40m3/h"]
[]
[null,"Stufe 1:","30m3/h"]
[null,"Stufe 2:","40m3/h"]
[null,"Stufe 3:","50m3/h"]
[]
[null,"MODBUS:",{"$f":"'ZUL ABL Baugruppe'!B3","v":"nein"}]
[]
["Anschlussschema",null,"Standard",null,null,null,null,null,"180° gedreht"]
["Gerät im Wohnzimmer"]

{"sheet":"3","index":5,"n_rows":16,"n_cols":9,"rows_kept":16,"cut":false,"hidden":false,"merged":[[2,1,2,4]]}
[3,"2-Zimmer Wohnung","1 Gerät","rechts"]
["Projekt",{"$f":"'ZUL ABL Baugruppe'!B1","v":0}]
["BG ZUL/ABL",{"$f":"'ZUL ABL Baugruppe'!A9","v":0}]
[null,"ZUL","Schlafen","40m3/h"]
[]
[null,"ABL","Bad","30m3/h"]
[null,null,"AR","10m3/h"]
[]
[null,"Stufe 1:","30m3/h"]
[null,"Stufe 2:","40m3/h"]
[null,"Stufe 3:","50m3/h"]
[]
[null,"MODBUS:",{"$f":"'ZUL ABL Baugruppe'!B3","v":"nein"}]
[]
["Anschlussschema",null,"Standard",null,null,null,null,null,"180° gedreht"]
["Gerät im Wohnzimmer"]

{"sheet":"4","index":6,"n_rows":16,"n_cols":9,"rows_kept":16,"cut":false,"hidden":false,"merged":[[2,1,2,4]]}
[4,"2-Zimmer Wohnung","1 Gerät","links"]
["Projekt",{"$f":"'ZUL ABL Baugruppe'!B1","v":0}]
["BG ZUL/ABL",{"$f":"'ZUL ABL Baugruppe'!A10","v":0}]
[null,"ZUL","Schlafen","40m3/h"]
[]
[null,"ABL","Bad","30m3/h"]
[null,null,"AR","10m3/h"]
[]
[null,"Stufe 1:","30m3/h"]
[null,"Stufe 2:","40m3/h"]
[null,"Stufe 3:","50m3/h"]
[]
[null,"MODBUS:",{"$f":"'ZUL ABL Baugruppe'!B3","v":"nein"}]
[]
["Anschlussschema",null,"Standard",null,null,null,null,null,"180° gedreht"]
["Gerät im Wohnzimmer"]

{"sheet":"5","index":7,"n_rows":16,"n_cols":9,"rows_kept":16,"cut":false,"hidden":false,"merged":[[2,1,2,4]]}
[5,"2-Zimmer Wohnung","1 Gerät","rechts"]
["Projekt",{"$f":"'ZUL ABL Baugruppe'!B1","v":0}]
["BG ZUL/ABL",{"$f":"'ZUL ABL Baugruppe'!A11","v":0}]
[null,"ZUL","Schlafen","45m3/h"]
[]
[null,"ABL","Bad","30m3/h"]
[null,null,"WC","15m3/h"]
[]
[null,"Stufe 1:","30m3/h"]
[null,"Stufe 2:","45m3/h"]
[null,"Stufe 3:","60m3/h"]
[]
[null,"MODBUS:",{"$f":"'ZUL ABL Baugruppe'!B3","v":"nein"}]
[]
["Anschlussschema",null,"Standard",null,null,null,null,null,"180° gedreht"]
["Gerät im Wohnzimmer"]

{"sheet":"6","index":8,"n_rows":16,"n_cols":9,"rows_kept":16,"cut":false,"hidden":false,"merged":[[2,1,2,4]]}
[6,"2-Zimmer Wohnung","1 Gerät","links"]
["Projekt",{"$f":"'ZUL ABL Baugruppe'!B1","v":0}]
["BG ZUL/ABL",{"$f":"'ZUL ABL Baugruppe'!A12","v":0}]
[null,"ZUL","Schlafen","45m3/h"]
[]
[null,"ABL","Bad","30m3/h"]
[null,null,"WC","15m3/h"]
[]
[null,"Stufe 1:","30m3/h"]
[null,"Stufe 2:","45m3/h"]
[null,"Stufe 3:","60m3/h"]
[]
[null,"MODBUS:",{"$f":"'ZUL ABL Baugruppe'!B3","v":"nein"}]
[]
["Anschlussschema",null,"Standard",null,null,null,null,null,"180° gedreht"]
["Gerät im Wohnzimmer"]

{"sheet":"7","index":9,"n_rows":17,"n_cols":9,"rows_kept":17,"cut":false,"hidden":false,"merged":[[2,1,2,4]]}
[7,"2-Zimmer Wohnung","1 Gerät","rechts"]
["Projekt",{"$f":"'ZUL ABL Baugruppe'!B1","v":0}]
["BG ZUL/ABL",{"$f":"'ZUL ABL Baugruppe'!A13","v":0}]
[null,"ZUL","Schlafen","55m3/h"]
[]
[null,"ABL","Bad","30m3/h"]
[null,null,"WC","15m3/h"]
[null,null,"AR","10m3/h"]
[]
[null,"Stufe 1:","40m3/h"]
[null,"Stufe 2:","55m3/h"]
[null,"Stufe 3:","70m3/h"]
[]
[null,"MODBUS:",{"$f":"'ZUL ABL Baugruppe'!B3","v":"nein"}]
[]
["Anschlussschema",null,"Standard",null,null,null,null,null,"180° gedreht"]
["Gerät im Wohnzimmer"]

{"sheet":"8","index":10,"n_rows":17,"n_cols":9,"rows_kept":17,"cut":false,"hidden":false,"merged":[[2,1,2,4]]}
[8,"2-Zimmer Wohnung","1 Gerät","links"]
["Projekt",{"$f":"'ZUL ABL Baugruppe'!B1","v":0}]
["BG ZUL/ABL",{"$f":"'ZUL ABL Baugruppe'!A14","v":0}]
[null,"ZUL","Schlafen","55m3/h"]
[]
[null,"ABL","Bad","30m3/h"]
[null,null,"WC","15m3/h"]
[null,null,"AR","10m3/h"]
[]
[null,"Stufe 1:","40m3/h"]
[null,"Stufe 2:","55m3/h"]
[null,"Stufe 3:","70m3/h"]
[]
[null,"MODBUS:",{"$f":"'ZUL ABL Baugruppe'!B3","v":"nein"}]
[]
["Anschlussschema",null,"Standard",null,null,null,null,null,"180° gedreht"]
["Gerät im Wohnzimmer"]

{"sheet":"9","index":11,"n_rows":17,"n_cols":9,"rows_kept":17,"cut":false,"hidden":false,"merged":[[2,1,2,4]]}
[9,"2-Zimmer Wohnung","1 Gerät","rechts"]
["Projekt",{"$f":"'ZUL ABL Baugruppe'!B1","v":0}]
["BG ZUL/ABL",{"$f":"'ZUL ABL Baugruppe'!A15","v":0}]
[null,"ZUL","Schlafen","40m3/h"]
[null,null,"Wohnen","20m3/h"]
[]
[null,"ABL","Bad","40m3/h"]
[null,null,"WC","20m3/h"]
[]
[null,"Stufe 1:","40m3/h"]
[null,"Stufe 2:","60m3/h"]
[null,"Stufe 3:","75m3/h"]
[]
[null,"MODBUS:",{"$f":"'ZUL ABL Baugruppe'!B3","v":"nein"}]
[]
["Anschlussschema",null,"Standard",null,null,null,null,null,"180° gedreht"]
["Gerät im Wohnzimmer"]

{"sheet":"10","index":12,"n_rows":17,"n_cols":9,"rows_kept":17,"cut":false,"hidden":false,"merged":[[2,1,2,4]]}
[10,"2-Zimmer Wohnung","1 Gerät","links"]
["Projekt",{"$f":"'ZUL ABL Baugruppe'!B1","v":0}]
["BG ZUL/ABL",{"$f":"'ZUL ABL Baugruppe'!A16","v":0}]
[null,"ZUL","Schlafen","40m3/h"]
[null,null,"Wohnen","20m3/h"]
[]
[null,"ABL","Bad","40m3/h"]
[null,null,"WC","20m3/h"]
[]
[null,"Stufe 1:","40m3/h"]
[null,"Stufe 2:","60m3/h"]
[null,"Stufe 3:","75m3/h"]
[]
[null,"MODBUS:",{"$f":"'ZUL ABL Baugruppe'!B3","v":"nein"}]
[]
["Anschlussschema",null,"Standard",null,null,null,null,null,"180° gedreht"]
["Gerät im Wohnzimmer"]

{"sheet":"11","index":13,"n_rows":18,"n_cols":10,"rows_kept":18,"cut":false,"hidden":false,"merged":[[2,1,2,4]]}
[11,"2-Zimmer Wohnung","1 Gerät","rechts"]
["Projekt",{"$f":"'ZUL ABL Baugruppe'!B1","v":0}]
["BG ZUL/ABL",{"$f":"'ZUL ABL Baugruppe'!A17","v":0}]
[null,"ZUL","Schlafen","40m3/h"]
[null,null,"Wohnen","20m3/h"]
[]
[null,"ABL","Bad","35m3/h"]
[null,null,"WC","15m3/h"]
[null,null,"AR","10m3/h"]
[]
[null,"Stufe 1:","40m3/h"]
[null,"Stufe 2:","60m3/h"]
[null,"Stufe 3:","75m3/h"]
[]
[null,"MODBUS:",{"$f":"'ZUL ABL Baugruppe'!B3","v":"nein"}]
[]
["Anschlussschema",null,"Standard",null,null,null,null,null,null,"180° gedreht"]
["Gerät im Wohnzimmer"]

{"sheet":"12","index":14,"n_rows":18,"n_cols":10,"rows_kept":18,"cut":false,"hidden":false,"merged":[[2,1,2,4]]}
[12,"2-Zimmer Wohnung","1 Gerät","links"]
["Projekt",{"$f":"'ZUL ABL Baugruppe'!B1","v":0}]
["BG ZUL/ABL",{"$f":"'ZUL ABL Baugruppe'!A18","v":0}]
[null,"ZUL","Schlafen","40m3/h"]
[null,null,"Wohnen","20m3/h"]
[]
[null,"ABL","Bad","35m3/h"]
[null,null,"WC","15m3/h"]
[null,null,"AR","10m3/h"]
[]
[null,"Stufe 1:","40m3/h"]
[null,"Stufe 2:","60m3/h"]
[null,"Stufe 3:","75m3/h"]
[]
[null,"MODBUS:",{"$f":"'ZUL ABL Baugruppe'!B3","v":"nein"}]
[]
["Anschlussschema",null,"Standard",null,null,null,null,null,null,"180° gedreht"]
["Gerät im Wohnzimmer"]

{"sheet":"13","index":15,"n_rows":17,"n_cols":9,"rows_kept":17,"cut":false,"hidden":false,"merged":[[2,1,2,4]]}
[13,"2-Zimmer Wohnung","1 Gerät","rechts"]
["Projekt",{"$f":"'ZUL ABL Baugruppe'!B1","v":0}]
["BG ZUL/ABL",{"$f":"'ZUL ABL Baugruppe'!A19","v":0}]
[null,"ZUL","Schlafen","40m3/h"]
[null,null,"Wohnen","20m3/h"]
[]
[null,"ABL","Bad","30m3/h"]
[null,null,"Küche","30m3/h"]
[]
[null,"Stufe 1:","40m3/h"]
[null,"Stufe 2:","60m3/h"]
[null,"Stufe 3:","75m3/h"]
[]
[null,"MODBUS:",{"$f":"'ZUL ABL Baugruppe'!B3","v":"nein"}]
[]
["Anschlussschema",null,"Standard",null,null,null,null,null,"180° gedreht"]
["Gerät im Wohnzimmer"]

{"sheet":"14","index":16,"n_rows":17,"n_cols":9,"rows_kept":17,"cut":false,"hidden":false,"merged":[[2,1,2,4]]}
[14,"2-Zimmer Wohnung","1 Gerät","links"]
["Projekt",{"$f":"'ZUL ABL Baugruppe'!B1","v":0}]
["BG ZUL/ABL",{"$f":"'ZUL ABL Baugruppe'!A20","v":0}]
[null,"ZUL","Schlafen","40m3/h"]
[null,null,"Wohnen","20m3/h"]
[]
[null,"ABL","Bad","30m3/h"]
[null,null,"Küche","30m3/h"]
[]
[null,"Stufe 1:","40m3/h"]
[null,"Stufe 2:","60m3/h"]
[null,"Stufe 3:","75m3/h"]
[]
[null,"MODBUS:",{"$f":"'ZUL ABL Baugruppe'!B3","v":"nein"}]
[]
["Anschlussschema",null,"Standard",null,null,null,null,null,"180° gedreht"]
["Gerät im Wohnzimmer"]

{"sheet":"15","index":17,"n_rows":18,"n_cols":9,"rows_kept":18,"cut":false,"hidden":false,"merged":[[2,1,2,4]]}
[15,"2-Zimmer Wohnung","1 Gerät","rechts"]
["Projekt",{"$f":"'ZUL ABL Baugruppe'!B1","v":0}]
["BG ZUL/ABL",{"$f":"'ZUL ABL Baugruppe'!A21","v":0}]
[null,"ZUL","Schlafen","40m3/h"]
[null,null,"Wohnen","30m3/h"]
[]
[null,"ABL","Bad","30m3/h"]
[null,null,"Küche","30m3/h"]
[null,null,"AR","10m3/h"]
[]
[null,"Stufe 1:","50m3/h"]
[null,"Stufe 2:","70m3/h"]
[null,"Stufe 3:","75m3/h"]
[]
[null,"MODBUS:",{"$f":"'ZUL ABL Baugruppe'!B3","v":"nein"}]
[]
["Anschlussschema",null,"Standard",null,null,null,null,null,"180° gedreht"]
["Gerät im Wohnzimmer"]

{"sheet":"16","index":18,"n_rows":18,"n_cols":9,"rows_kept":18,"cut":false,"hidden":false,"merged":[[2,1,2,4]]}
[16,"2-Zimmer Wohnung","1 Gerät","links"]
["Projekt",{"$f":"'ZUL ABL Baugruppe'!B1","v":0}]
["BG ZUL/ABL",{"$f":"'ZUL ABL Baugruppe'!A22","v":0}]
[null,"ZUL","Schlafen","40m3/h"]
[null,null,"Wohnen","30m3/h"]
[]
[null,"ABL","Bad","30m3/h"]
[null,null,"Küche","30m3/h"]
[null,null,"AR","10m3/h"]
[]
[null,"Stufe 1:","50m3/h"]
[null,"Stufe 2:","70m3/h"]
[null,"Stufe 3:","75m3/h"]
[]
[null,"MODBUS:",{"$f":"'ZUL ABL Baugruppe'!B3","v":"nein"}]
[]
["Anschlussschema",null,"Standard",null,null,null,null,null,"180° gedreht"]
["Gerät im Wohnzimmer"]

{"sheet":"17","index":19,"n_rows":18,"n_cols":9,"rows_kept":18,"cut":false,"hidden":false,"merged":[[2,1,2,4]]}
[17,"2-Zimmer Wohnung","1 Gerät","rechts"]
["Projekt",{"$f":"'ZUL ABL Baugruppe'!B1","v":0}]
["BG ZUL/ABL",{"$f":"'ZUL ABL Baugruppe'!A23","v":0}]
[null,"ZUL","Schlafen","40m3/h"]
[null,null,"Wohnen","35m3/h"]
[]
[null,"ABL","Bad","30m3/h"]
[null,null,"Küche","30m3/h"]
[null,null,"WC","15m3/h"]
[]
[null,"Stufe 1:","50m3/h"]
[null,"Stufe 2:","75m3/h"]
[null,"Stufe 3:","75m3/h"]
[]
[null,"MODBUS:",{"$f":"'ZUL ABL Baugruppe'!B3","v":"nein"}]
[]
["Anschlussschema",null,"Standard",null,null,null,null,null,"180° gedreht"]
["Gerät im Wohnzimmer"]

{"sheet":"18","index":20,"n_rows":18,"n_cols":9,"rows_kept":18,"cut":false,"hidden":false,"merged":[[2,1,2,4]]}
[18,"2-Zimmer Wohnung","1 Gerät","links"]
["Projekt",{"$f":"'ZUL ABL Baugruppe'!B1","v":0}]
["BG ZUL/ABL",{"$f":"'ZUL ABL Baugruppe'!A24","v":0}]
[null,"ZUL","Schlafen","40m3/h"]
[null,null,"Wohnen","35m3/h"]
[]
[null,"ABL","Bad","30m3/h"]
[null,null,"Küche","30m3/h"]
[null,null,"WC","15m3/h"]
[]
[null,"Stufe 1:","50m3/h"]
[null,"Stufe 2:","75m3/h"]
[null,"Stufe 3:","75m3/h"]
[]
[null,"MODBUS:",{"$f":"'ZUL ABL Baugruppe'!B3","v":"nein"}]
[]
["Anschlussschema",null,"Standard",null,null,null,null,null,"180° gedreht"]
["Gerät im Wohnzimmer"]

{"sheet":"19","index":21,"n_rows":17,"n_cols":9,"rows_kept":17,"cut":false,"hidden":false,"merged":[[2,1,2,4]]}
[19,"3-Zimmer Wohnung","1 Gerät","rechts"]
["Projekt",{"$f":"'ZUL ABL Baugruppe'!B1","v":0}]
["BG ZUL/ABL",{"$f":"'ZUL ABL Baugruppe'!A25","v":0}]
[null,"ZUL","Schlafen","40m3/h"]
[null,null,"Kind","20m3/h"]
[]
[null,"ABL","Bad","40m3/h"]
[null,null,"WC","20m3/h"]
[]
[null,"Stufe 1:","40m3/h"]
[null,"Stufe 2:","60m3/h"]
[null,"Stufe 3:","75m3/h"]
[]
[null,"MODBUS:",{"$f":"'ZUL ABL Baugruppe'!B3","v":"nein"}]
[]
["Anschlussschema",null,"Standard",null,null,null,null,null,"180° gedreht"]
["Gerät im Wohnzimmer"]

{"sheet":"20","index":22,"n_rows":17,"n_cols":9,"rows_kept":17,"cut":false,"hidden":false,"merged":[[2,1,2,4]]}
[20,"3-Zimmer Wohnung","1 Gerät","links"]
["Projekt",{"$f":"'ZUL ABL Baugruppe'!B1","v":0}]
["BG ZUL/ABL",{"$f":"'ZUL ABL Baugruppe'!A26","v":0}]
[null,"ZUL","Schlafen","40m3/h"]
[null,null,"Kind","20m3/h"]
[]
[null,"ABL","Bad","40m3/h"]
[null,null,"WC","20m3/h"]
[]
[null,"Stufe 1:","40m3/h"]
[null,"Stufe 2:","60m3/h"]
[null,"Stufe 3:","75m3/h"]
[]
[null,"MODBUS:",{"$f":"'ZUL ABL Baugruppe'!B3","v":"nein"}]
[]
["Anschlussschema",null,"Standard",null,null,null,null,null,"180° gedreht"]
["Gerät im Wohnzimmer"]

{"sheet":"21","index":23,"n_rows":18,"n_cols":10,"rows_kept":18,"cut":false,"hidden":false,"merged":[[2,1,2,4]]}
[21,"3-Zimmer Wohnung","1 Gerät","rechts"]
["Projekt",{"$f":"'ZUL ABL Baugruppe'!B1","v":0}]
["BG ZUL/ABL",{"$f":"'ZUL ABL Baugruppe'!A27","v":0}]
[null,"ZUL","Schlafen","40m3/h"]
[null,null,"Kind","20m3/h"]
[]
[null,"ABL","Bad","35m3/h"]
[null,null,"WC","15m3/h"]
[null,null,"AR","10m3/h"]
[]
[null,"Stufe 1:","40m3/h"]
[null,"Stufe 2:","60m3/h"]
[null,"Stufe 3:","75m3/h"]
[]
[null,"MODBUS:",{"$f":"'ZUL ABL Baugruppe'!B3","v":"nein"}]
[]
["Anschlussschema",null,"Standard",null,null,null,null,null,null,"180° gedreht"]
["Gerät im Wohnzimmer"]

{"sheet":"22","index":24,"n_rows":18,"n_cols":10,"rows_kept":18,"cut":false,"hidden":false,"merged":[[2,1,2,4]]}
[22,"3-Zimmer Wohnung","1 Gerät","links"]
["Projekt",{"$f":"'ZUL ABL Baugruppe'!B1","v":0}]
["BG ZUL/ABL",{"$f":"'ZUL ABL Baugruppe'!A28","v":0}]
[null,"ZUL","Schlafen","40m3/h"]
[null,null,"Kind","20m3/h"]
[]
[null,"ABL","Bad","35m3/h"]
[null,null,"WC","15m3/h"]
[null,null,"AR","10m3/h"]
[]
[null,"Stufe 1:","40m3/h"]
[null,"Stufe 2:","60m3/h"]
[null,"Stufe 3:","75m3/h"]
[]
[null,"MODBUS:",{"$f":"'ZUL ABL Baugruppe'!B3","v":"nein"}]
[]
["Anschlussschema",null,"Standard",null,null,null,null,null,null,"180° gedreht"]
["Gerät im Wohnzimmer"]

{"sheet":"23","index":25,"n_rows":17,"n_cols":9,"rows_kept":17,"cut":false,"hidden":false,"merged":[[2,1,2,4]]}
[23,"3-Zimmer Wohnung","1 Gerät","rechts"]
["Projekt",{"$f":"'ZUL ABL Baugruppe'!B1","v":0}]
["BG ZUL/ABL",{"$f":"'ZUL ABL Baugruppe'!A29","v":0}]
[null,"ZUL","Schlafen","40m3/h"]
[null,null,"Kind","20m3/h"]
[]
[null,"ABL","Bad","30m3/h"]
[null,null,"Küche","30m3/h"]
[]
[null,"Stufe 1:","40m3/h"]
[null,"Stufe 2:","60m3/h"]
[null,"Stufe 3:","75m3/h"]
[]
[null,"MODBUS:",{"$f":"'ZUL ABL Baugruppe'!B3","v":"nein"}]
[]
["Anschlussschema",null,"Standard",null,null,null,null,null,"180° gedreht"]
["Gerät im Wohnzimmer"]

{"sheet":"24","index":26,"n_rows":17,"n_cols":9,"rows_kept":17,"cut":false,"hidden":false,"merged":[[2,1,2,4]]}
[24,"3-Zimmer Wohnung","1 Gerät","links"]
["Projekt",{"$f":"'ZUL ABL Baugruppe'!B1","v":0}]
["BG ZUL/ABL",{"$f":"'ZUL ABL Baugruppe'!A30","v":0}]
[null,"ZUL","Schlafen","40m3/h"]
[null,null,"Kind","20m3/h"]
[]
[null,"ABL","Bad","30m3/h"]
[null,null,"Küche","30m3/h"]
[]
[null,"Stufe 1:","40m3/h"]
[null,"Stufe 2:","60m3/h"]
[null,"Stufe 3:","75m3/h"]
[]
[null,"MODBUS:",{"$f":"'ZUL ABL Baugruppe'!B3","v":"nein"}]
[]
["Anschlussschema",null,"Standard",null,null,null,null,null,"180° gedreht"]
["Gerät im Wohnzimmer"]

{"sheet":"25","index":27,"n_rows":18,"n_cols":9,"rows_kept":18,"cut":false,"hidden":false,"merged":[[2,1,2,4]]}
[25,"3-Zimmer Wohnung","1 Gerät","rechts"]
["Projekt",{"$f":"'ZUL ABL Baugruppe'!B1","v":0}]
["BG ZUL/ABL",{"$f":"'ZUL ABL Baugruppe'!A31","v":0}]
[null,"ZUL","Schlafen","45m3/h"]
[null,null,"Kind","25m3/h"]
[]
[null,"ABL","Bad","30m3/h"]
[null,null,"Küche","30m3/h"]
[null,null,"AR","10m3/h"]
[]
[null,"Stufe 1:","50m3/h"]
[null,"Stufe 2:","70m3/h"]
[null,"Stufe 3:","75m3/h"]
[]
[null,"MODBUS:",{"$f":"'ZUL ABL Baugruppe'!B3","v":"nein"}]
[]
["Anschlussschema",null,"Standard",null,null,null,null,null,"180° gedreht"]
["Gerät im Wohnzimmer"]

{"sheet":"26","index":28,"n_rows":18,"n_cols":9,"rows_kept":18,"cut":false,"hidden":false,"merged":[[2,1,2,4]]}
[26,"3-Zimmer Wohnung","1 Gerät","links"]
["Projekt",{"$f":"'ZUL ABL Baugruppe'!B1","v":0}]
["BG ZUL/ABL",{"$f":"'ZUL ABL Baugruppe'!A32","v":0}]
[null,"ZUL","Schlafen","45m3/h"]
[null,null,"Kind","25m3/h"]
[]
[null,"ABL","Bad","30m3/h"]
[null,null,"Küche","30m3/h"]
[null,null,"AR","10m3/h"]
[]
[null,"Stufe 1:","50m3/h"]
[null,"Stufe 2:","70m3/h"]
[null,"Stufe 3:","75m3/h"]
[]
[null,"MODBUS:",{"$f":"'ZUL ABL Baugruppe'!B3","v":"nein"}]
[]
["Anschlussschema",null,"Standard",null,null,null,null,null,"180° gedreht"]
["Gerät im Wohnzimmer"]

{"sheet":"27","index":29,"n_rows":18,"n_cols":9,"rows_kept":18,"cut":false,"hidden":false,"merged":[[2,1,2,4]]}
[27,"3-Zimmer Wohnung","1 Gerät","rechts"]
["Projekt",{"$f":"'ZUL ABL Baugruppe'!B1","v":0}]
["BG ZUL/ABL",{"$f":"'ZUL ABL Baugruppe'!A33","v":0}]
[null,"ZUL","Schlafen","50m3/h"]
[null,null,"Kind","25m3/h"]
[]
[null,"ABL","Bad","30m3/h"]
[null,null,"Küche","30m3/h"]
[null,null,"WC","15m3/h"]
[]
[null,"Stufe 1:","50m3/h"]
[null,"Stufe 2:","75m3/h"]
[null,"Stufe 3:","75m3/h"]
[]
[null,"MODBUS:",{"$f":"'ZUL ABL Baugruppe'!B3","v":"nein"}]
[]
["Anschlussschema",null,"Standard",null,null,null,null,null,"180° gedreht"]
["Gerät im Wohnzimmer"]

{"sheet":"28","index":30,"n_rows":18,"n_cols":9,"rows_kept":18,"cut":false,"hidden":false,"merged":[[2,1,2,4]]}
[28,"3-Zimmer Wohnung","1 Gerät","links"]
["Projekt",{"$f":"'ZUL ABL Baugruppe'!B1","v":0}]
["BG ZUL/ABL",{"$f":"'ZUL ABL Baugruppe'!A34","v":0}]
[null,"ZUL","Schlafen","50m3/h"]
[null,null,"Kind","25m3/h"]
[]
[null,"ABL","Bad","30m3/h"]
[null,null,"Küche","30m3/h"]
[null,null,"WC","15m3/h"]
[]
[null,"Stufe 1:","50m3/h"]
[null,"Stufe 2:","75m3/h"]
[null,"Stufe 3:","75m3/h"]
[]
[null,"MODBUS:",{"$f":"'ZUL ABL Baugruppe'!B3","v":"nein"}]
[]
["Anschlussschema",null,"Standard",null,null,null,null,null,"180° gedreht"]
["Gerät im Wohnzimmer"]

{"sheet":"29","index":31,"n_rows":18,"n_cols":10,"rows_kept":18,"cut":false,"hidden":false,"merged":[[2,1,2,4]]}
[29,"3-Zimmer Wohnung","1 Gerät","rechts"]
["Projekt",{"$f":"'ZUL ABL Baugruppe'!B1","v":0}]
["BG ZUL/ABL",{"$f":"'ZUL ABL Baugruppe'!A35","v":0}]
[null,"ZUL","Schlafen","40m3/h"]
[null,null,"Kind","20m3/h"]
[null,null,"Wohnen","15m3/h"]
[]
[null,"ABL","Bad","50m3/h"]
[null,null,"WC","25m3/h"]
[]
[null,"Stufe 1:","50m3/h"]
[null,"Stufe 2:","75m3/h"]
[null,"Stufe 3:","75m3/h"]
[]
[null,"MODBUS:",{"$f":"'ZUL ABL Baugruppe'!B3","v":"nein"}]
[]
["Anschlussschema",null,"Standard",null,null,null,null,null,null,"180° gedreht"]
["Gerät im Wohnzimmer"]

{"sheet":"30","index":32,"n_rows":18,"n_cols":10,"rows_kept":18,"cut":false,"hidden":false,"merged":[[2,1,2,4]]}
[30,"3-Zimmer Wohnung","1 Gerät","links"]
["Projekt",{"$f":"'ZUL ABL Baugruppe'!B1","v":0}]
["BG ZUL/ABL",{"$f":"'ZUL ABL Baugruppe'!A36","v":0}]
[null,"ZUL","Schlafen","40m3/h"]
[null,null,"Kind","20m3/h"]
[null,null,"Wohnen","15m3/h"]
[]
[null,"ABL","Bad","50m3/h"]
[null,null,"WC","25m3/h"]
[]
[null,"Stufe 1:","50m3/h"]
[null,"Stufe 2:","75m3/h"]
[null,"Stufe 3:","75m3/h"]
[]
[null,"MODBUS:",{"$f":"'ZUL ABL Baugruppe'!B3","v":"nein"}]
[]
["Anschlussschema",null,"Standard",null,null,null,null,null,null,"180° gedreht"]
["Gerät im Wohnzimmer"]

{"sheet":"31","index":33,"n_rows":19,"n_cols":10,"rows_kept":19,"cut":false,"hidden":false,"merged":[[2,1,2,4]]}
[31,"3-Zimmer Wohnung","1 Gerät","rechts"]
["Projekt",{"$f":"'ZUL ABL Baugruppe'!B1","v":0}]
["BG ZUL/ABL",{"$f":"'ZUL ABL Baugruppe'!A37","v":0}]
[null,"ZUL","Schlafen","40m3/h"]
[null,null,"Kind","20m3/h"]
[null,null,"Wohnen","15m3/h"]
[]
[null,"ABL","Bad","50m3/h"]
[null,null,"WC","15m3/h"]
[null,null,"AR","10m3/h"]
[]
[null,"Stufe 1:","50m3/h"]
[null,"Stufe 2:","75m3/h"]
[null,"Stufe 3:","75m3/h"]
[]
[null,"MODBUS:",{"$f":"'ZUL ABL Baugruppe'!B3","v":"nein"}]
[]
["Anschlussschema",null,"Standard",null,null,null,null,null,null,"180° gedreht"]
["Gerät im Wohnzimmer"]

{"sheet":"32","index":34,"n_rows":19,"n_cols":10,"rows_kept":19,"cut":false,"hidden":false,"merged":[[2,1,2,4]]}
[32,"3-Zimmer Wohnung","1 Gerät","links"]
["Projekt",{"$f":"'ZUL ABL Baugruppe'!B1","v":0}]
["BG ZUL/ABL",{"$f":"'ZUL ABL Baugruppe'!A38","v":0}]
[null,"ZUL","Schlafen","40m3/h"]
[null,null,"Kind","20m3/h"]
[null,null,"Wohnen","15m3/h"]
[]
[null,"ABL","Bad","50m3/h"]
[null,null,"WC","15m3/h"]
[null,null,"AR","10m3/h"]
[]
[null,"Stufe 1:","50m3/h"]
[null,"Stufe 2:","75m3/h"]
[null,"Stufe 3:","75m3/h"]
[]
[null,"MODBUS:",{"$f":"'ZUL ABL Baugruppe'!B3","v":"nein"}]
[]
["Anschlussschema",null,"Standard",null,null,null,null,null,null,"180° gedreht"]
["Gerät im Wohnzimmer"]

{"sheet":"33","index":35,"n_rows":18,"n_cols":10,"rows_kept":18,"cut":false,"hidden":false,"merged":[[2,1,2,4]]}
[33,"3-Zimmer Wohnung","1 Gerät","rechts"]
["Projekt",{"$f":"'ZUL ABL Baugruppe'!B1","v":0}]
["BG ZUL/ABL",{"$f":"'ZUL ABL Baugruppe'!A39","v":0}]
[null,"ZUL","Schlafen","40m3/h"]
[null,null,"Kind","20m3/h"]
[null,null,"Wohnen","15m3/h"]
[]
[null,"ABL","Bad","37,5m3/h"]
[null,null,"Küche","37,5m3/h"]
[]
[null,"Stufe 1:","50m3/h"]
[null,"Stufe 2:","75m3/h"]
[null,"Stufe 3:","75m3/h"]
[]
[null,"MODBUS:",{"$f":"'ZUL ABL Baugruppe'!B3","v":"nein"}]
[]
["Anschlussschema",null,"Standard",null,null,null,null,null,null,"180° gedreht"]
["Gerät im Wohnzimmer"]

{"sheet":"34","index":36,"n_rows":18,"n_cols":10,"rows_kept":18,"cut":false,"hidden":false,"merged":[[2,1,2,4]]}
[34,"3-Zimmer Wohnung","1 Gerät","links"]
["Projekt",{"$f":"'ZUL ABL Baugruppe'!B1","v":0}]
["BG ZUL/ABL",{"$f":"'ZUL ABL Baugruppe'!A40","v":0}]
[null,"ZUL","Schlafen","40m3/h"]
[null,null,"Kind","20m3/h"]
[null,null,"Wohnen","15m3/h"]
[]
[null,"ABL","Bad","37,5m3/h"]
[null,null,"Küche","37,5m3/h"]
[]
[null,"Stufe 1:","50m3/h"]
[null,"Stufe 2:","75m3/h"]
[null,"Stufe 3:","75m3/h"]
[]
[null,"MODBUS:",{"$f":"'ZUL ABL Baugruppe'!B3","v":"nein"}]
[]
["Anschlussschema",null,"Standard",null,null,null,null,null,null,"180° gedreht"]
["Gerät im Wohnzimmer"]

{"sheet":"35","index":37,"n_rows":19,"n_cols":10,"rows_kept":19,"cut":false,"hidden":false,"merged":[[2,1,2,4]]}
[35,"3-Zimmer Wohnung","1 Gerät","rechts"]
["Projekt",{"$f":"'ZUL ABL Baugruppe'!B1","v":0}]
["BG ZUL/ABL",{"$f":"'ZUL ABL Baugruppe'!A41","v":0}]
[null,"ZUL","Schlafen","40m3/h"]
[null,null,"Kind","20m3/h"]
[null,null,"Wohnen","15m3/h"]
[]
[null,"ABL","Bad","30m3/h"]
[null,null,"Küche","30m3/h"]
[null,null,"AR","15m3/h"]
[]
[null,"Stufe 1:","50m3/h"]
[null,"Stufe 2:","75m3/h"]
[null,"Stufe 3:","75m3/h"]
[]
[null,"MODBUS:",{"$f":"'ZUL ABL Baugruppe'!B3","v":"nein"}]
[]
["Anschlussschema",null,"Standard",null,null,null,null,null,null,"180° gedreht"]
["Gerät im Wohnzimmer"]

{"sheet":"36","index":38,"n_rows":19,"n_cols":10,"rows_kept":19,"cut":false,"hidden":false,"merged":[[2,1,2,4]]}
[36,"3-Zimmer Wohnung","1 Gerät","links"]
["Projekt",{"$f":"'ZUL ABL Baugruppe'!B1","v":0}]
["BG ZUL/ABL",{"$f":"'ZUL ABL Baugruppe'!A42","v":0}]
[null,"ZUL","Schlafen","40m3/h"]
[null,null,"Kind","20m3/h"]
[null,null,"Wohnen","15m3/h"]
[]
[null,"ABL","Bad","30m3/h"]
[null,null,"Küche","30m3/h"]
[null,null,"AR","15m3/h"]
[]
[null,"Stufe 1:","50m3/h"]
[null,"Stufe 2:","75m3/h"]
[null,"Stufe 3:","75m3/h"]
[]
[null,"MODBUS:",{"$f":"'ZUL ABL Baugruppe'!B3","v":"nein"}]
[]
["Anschlussschema",null,"Standard",null,null,null,null,null,null,"180° gedreht"]
["Gerät im Wohnzimmer"]

{"sheet":"37","index":39,"n_rows":19,"n_cols":10,"rows_kept":19,"cut":false,"hidden":false,"merged":[[2,1,2,4]]}
[37,"3-Zimmer Wohnung","1 Gerät","rechts"]
["Projekt",{"$f":"'ZUL ABL Baugruppe'!B1","v":0}]
["BG ZUL/ABL",{"$f":"'ZUL ABL Baugruppe'!A43","v":0}]
[null,"ZUL","Schlafen","40m3/h"]
[null,null,"Kind","20m3/h"]
[null,null,"Wohnen","15m3/h"]
[]
[null,"ABL","Bad","30m3/h"]
[null,null,"Küche","30m3/h"]
[null,null,"WC","15m3/h"]
[]
[null,"Stufe 1:","50m3/h"]
[null,"Stufe 2:","75m3/h"]
[null,"Stufe 3:","75m3/h"]
[]
[null,"MODBUS:",{"$f":"'ZUL ABL Baugruppe'!B3","v":"nein"}]
[]
["Anschlussschema",null,"Standard",null,null,null,null,null,null,"180° gedreht"]
["Gerät im Wohnzimmer"]

{"sheet":"38","index":40,"n_rows":19,"n_cols":10,"rows_kept":19,"cut":false,"hidden":false,"merged":[[2,1,2,4]]}
[38,"3-Zimmer Wohnung","1 Gerät","links"]
["Projekt",{"$f":"'ZUL ABL Baugruppe'!B1","v":0}]
["BG ZUL/ABL",{"$f":"'ZUL ABL Baugruppe'!A44","v":0}]
[null,"ZUL","Schlafen","40m3/h"]
[null,null,"Kind","20m3/h"]
[null,null,"Wohnen","15m3/h"]
[]
[null,"ABL","Bad","30m3/h"]
[null,null,"Küche","30m3/h"]
[null,null,"WC","15m3/h"]
[]
[null,"Stufe 1:","50m3/h"]
[null,"Stufe 2:","75m3/h"]
[null,"Stufe 3:","75m3/h"]
[]
[null,"MODBUS:",{"$f":"'ZUL ABL Baugruppe'!B3","v":"nein"}]
[]
["Anschlussschema",null,"Standard",null,null,null,null,null,null,"180° gedreht"]
["Gerät im Wohnzimmer"]

{"sheet":"39","index":41,"n_rows":18,"n_cols":10,"rows_kept":18,"cut":false,"hidden":false,"merged":[[2,1,2,4]]}
[39,"4-Zimmer Wohnung","1 Gerät","rechts"]
["Projekt",{"$f":"'ZUL ABL Baugruppe'!B1","v":0}]
["BG ZUL/ABL",{"$f":"'ZUL ABL Baugruppe'!A45","v":0}]
[null,"ZUL","Schlafen","30m3/h"]
[null,null,"Kind","15m3/h"]
[null,null,"Kind","15m3/h"]
[]
[null,"ABL","Bad","40m3/h"]
[null,null,"WC","20m3/h"]
[]
[null,"Stufe 1:","40m3/h"]
[null,"Stufe 2:","60m3/h"]
[null,"Stufe 3:","75m3/h"]
[]
[null,"MODBUS:",{"$f":"'ZUL ABL Baugruppe'!B3","v":"nein"}]
[]
["Anschlussschema",null,"Standard",null,null,null,null,null,null,"180° gedreht"]
["Gerät im Wohnzimmer"]

{"sheet":"40","index":42,"n_rows":18,"n_cols":10,"rows_kept":18,"cut":false,"hidden":false,"merged":[[2,1,2,4]]}
[40,"4-Zimmer Wohnung","1 Gerät","links"]
["Projekt",{"$f":"'ZUL ABL Baugruppe'!B1","v":0}]
["BG ZUL/ABL",{"$f":"'ZUL ABL Baugruppe'!A46","v":0}]
[null,"ZUL","Schlafen","30m3/h"]
[null,null,"Kind","15m3/h"]
[null,null,"Kind","15m3/h"]
[]
[null,"ABL","Bad","40m3/h"]
[null,null,"WC","20m3/h"]
[]
[null,"Stufe 1:","40m3/h"]
[null,"Stufe 2:","60m3/h"]
[null,"Stufe 3:","75m3/h"]
[]
[null,"MODBUS:",{"$f":"'ZUL ABL Baugruppe'!B3","v":"nein"}]
[]
["Anschlussschema",null,"Standard",null,null,null,null,null,null,"180° gedreht"]
["Gerät im Wohnzimmer"]

{"sheet":"41","index":43,"n_rows":19,"n_cols":10,"rows_kept":19,"cut":false,"hidden":false,"merged":[[2,1,2,4]]}
[41,"4-Zimmer Wohnung","1 Gerät","rechts"]
["Projekt",{"$f":"'ZUL ABL Baugruppe'!B1","v":0}]
["BG ZUL/ABL",{"$f":"'ZUL ABL Baugruppe'!A47","v":0}]
[null,"ZUL","Schlafen","30m3/h"]
[null,null,"Kind","15m3/h"]
[null,null,"Kind","15m3/h"]
[]
[null,"ABL","Bad","35m3/h"]
[null,null,"WC","15m3/h"]
[null,null,"AR","10m3/h"]
[]
[null,"Stufe 1:","40m3/h"]
[null,"Stufe 2:","60m3/h"]
[null,"Stufe 3:","75m3/h"]
[]
[null,"MODBUS:",{"$f":"'ZUL ABL Baugruppe'!B3","v":"nein"}]
[]
["Anschlussschema",null,"Standard",null,null,null,null,null,null,"180° gedreht"]
["Gerät im Wohnzimmer"]

{"sheet":"42","index":44,"n_rows":19,"n_cols":10,"rows_kept":19,"cut":false,"hidden":false,"merged":[[2,1,2,4]]}
[42,"4-Zimmer Wohnung","1 Gerät","links"]
["Projekt",{"$f":"'ZUL ABL Baugruppe'!B1","v":0}]
["BG ZUL/ABL",{"$f":"'ZUL ABL Baugruppe'!A48","v":0}]
[null,"ZUL","Schlafen","30m3/h"]
[null,null,"Kind","15m3/h"]
[null,null,"Kind","15m3/h"]
[]
[null,"ABL","Bad","35m3/h"]
[null,null,"WC","15m3/h"]
[null,null,"AR","10m3/h"]
[]
[null,"Stufe 1:","40m3/h"]
[null,"Stufe 2:","60m3/h"]
[null,"Stufe 3:","75m3/h"]
[]
[null,"MODBUS:",{"$f":"'ZUL ABL Baugruppe'!B3","v":"nein"}]
[]
["Anschlussschema",null,"Standard",null,null,null,null,null,null,"180° gedreht"]
["Gerät im Wohnzimmer"]

{"sheet":"43","index":45,"n_rows":18,"n_cols":10,"rows_kept":18,"cut":false,"hidden":false,"merged":[[2,1,2,4]]}
[43,"4-Zimmer Wohnung","1 Gerät","rechts"]
["Projekt",{"$f":"'ZUL ABL Baugruppe'!B1","v":0}]
["BG ZUL/ABL",{"$f":"'ZUL ABL Baugruppe'!A49","v":0}]
[null,"ZUL","Schlafen","30m3/h"]
[null,null,"Kind","15m3/h"]
[null,null,"Kind","15m3/h"]
[]
[null,"ABL","Bad","30m3/h"]
[null,null,"Küche","30m3/h"]
[]
[null,"Stufe 1:","40m3/h"]
[null,"Stufe 2:","60m3/h"]
[null,"Stufe 3:","75m3/h"]
[]
[null,"MODBUS:",{"$f":"'ZUL ABL Baugruppe'!B3","v":"nein"}]
[]
["Anschlussschema",null,"Standard",null,null,null,null,null,null,"180° gedreht"]
["Gerät im Wohnzimmer"]

{"sheet":"44","index":46,"n_rows":18,"n_cols":10,"rows_kept":18,"cut":false,"hidden":false,"merged":[[2,1,2,4]]}
[44,"4-Zimmer Wohnung","1 Gerät","links"]
["Projekt",{"$f":"'ZUL ABL Baugruppe'!B1","v":0}]
["BG ZUL/ABL",{"$f":"'ZUL ABL Baugruppe'!A50","v":0}]
[null,"ZUL","Schlafen","30m3/h"]
[null,null,"Kind","15m3/h"]
[null,null,"Kind","15m3/h"]
[]
[null,"ABL","Bad","30m3/h"]
[null,null,"Küche","30m3/h"]
[]
[null,"Stufe 1:","40m3/h"]
[null,"Stufe 2:","60m3/h"]
[null,"Stufe 3:","75m3/h"]
[]
[null,"MODBUS:",{"$f":"'ZUL ABL Baugruppe'!B3","v":"nein"}]
[]
["Anschlussschema",null,"Standard",null,null,null,null,null,null,"180° gedreht"]
["Gerät im Wohnzimmer"]

{"sheet":"45","index":47,"n_rows":19,"n_cols":10,"rows_kept":19,"cut":false,"hidden":false,"merged":[[2,1,2,4]]}
[45,"4-Zimmer Wohnung","1 Gerät","rechts"]
["Projekt",{"$f":"'ZUL ABL Baugruppe'!B1","v":0}]
["BG ZUL/ABL",{"$f":"'ZUL ABL Baugruppe'!A51","v":0}]
[null,"ZUL","Schlafen","30m3/h"]
[null,null,"Kind","20m3/h"]
[null,null,"Kind","20m3/h"]
[]
[null,"ABL","Bad","30m3/h"]
[null,null,"Küche","30m3/h"]
[null,null,"AR","10m3/h"]
[]
[null,"Stufe 1:","50m3/h"]
[null,"Stufe 2:","70m3/h"]
[null,"Stufe 3:","75m3/h"]
[]
[null,"MODBUS:",{"$f":"'ZUL ABL Baugruppe'!B3","v":"nein"}]
[]
["Anschlussschema",null,"Standard",null,null,null,null,null,null,"180° gedreht"]
["Gerät im Wohnzimmer"]

{"sheet":"46","index":48,"n_rows":19,"n_cols":10,"rows_kept":19,"cut":false,"hidden":false,"merged":[[2,1,2,4]]}
[46,"4-Zimmer Wohnung","1 Gerät","links"]
["Projekt",{"$f":"'ZUL ABL Baugruppe'!B1","v":0}]
["BG ZUL/ABL",{"$f":"'ZUL ABL Baugruppe'!A52","v":0}]
[null,"ZUL","Schlafen","30m3/h"]
[null,null,"Kind","20m3/h"]
[null,null,"Kind","20m3/h"]
[]
[null,"ABL","Bad","30m3/h"]
[null,null,"Küche","30m3/h"]
[null,null,"AR","10m3/h"]
[]
[null,"Stufe 1:","50m3/h"]
[null,"Stufe 2:","70m3/h"]
[null,"Stufe 3:","75m3/h"]
[]
[null,"MODBUS:",{"$f":"'ZUL ABL Baugruppe'!B3","v":"nein"}]
[]
["Anschlussschema",null,"Standard",null,null,null,null,null,null,"180° gedreht"]
["Gerät im Wohnzimmer"]

{"sheet":"47","index":49,"n_rows":52,"n_cols":10,"rows_kept":52,"cut":false,"hidden":false,"merged":[[2,1,2,4]]}
[47,"4-Zimmer Wohnung","2 Geräte","rechts"]
["Projekt",{"$f":"'ZUL ABL Baugruppe'!B1","v":0}]
["BG ZUL/ABL",{"$f":"'ZUL ABL Baugruppe'!A53","v":0}]
[null,"ZUL","Schlafen","40m3/h"]
[null,null,"Kind","20m3/h"]
[null,null,"Kind","20m3/h"]
[null,null,"Wohnen","35m3/h"]
[]
[null,"ABL","Bad","40m3/h"]
[null,null,"WC","25m3/h"]
[null,null,"Küche","50m3/h"]
[]
["Wohnen","Stufe 1:","50m3/h"]
[null,"Stufe 2:","75m3/h"]
[null,"Stufe 3:","75m3/h"]
[]
[null,"MODBUS:",{"$f":"'ZUL ABL Baugruppe'!B3","v":"nein"}]
[]
["Schlafen","Stufe 1:","30m3/h"]
[null,"Stufe 2:","40m3/h"]
[null,"Stufe 3:","50m3/h"]
[]
[null,"MODBUS:",{"$f":"'ZUL ABL Baugruppe'!B3","v":"nein"}]
[]
["Anschlussschema",null,"Standard",null,null,null,null,null,null,"180° gedreht"]
["Gerät im Wohnzimmer"]
[]
[]
[]
[]
[]
[]
[]
[]
[]
[]
[]
[]
[]
[]
[]
[]
[]
[]
[]
[]
[]
[]
[]
[]
["Anschlussschema",null,"Standard",null,null,null,null,null,null,"180° gedreht"]
["Gerät im Schlafzimmer"]

{"sheet":"48","index":50,"n_rows":52,"n_cols":10,"rows_kept":52,"cut":false,"hidden":false,"merged":[[2,1,2,4]]}
[48,"4-Zimmer Wohnung","2 Geräte","links"]
["Projekt",{"$f":"'ZUL ABL Baugruppe'!B1","v":0}]
["BG ZUL/ABL",{"$f":"'ZUL ABL Baugruppe'!A54","v":0}]
[null,"ZUL","Schlafen","40m3/h"]
[null,null,"Kind","20m3/h"]
[null,null,"Kind","20m3/h"]
[null,null,"Wohnen","35m3/h"]
[]
[null,"ABL","Bad","40m3/h"]
[null,null,"WC","25m3/h"]
[null,null,"Küche","50m3/h"]
[]
["Wohnen","Stufe 1:","50m3/h"]
[null,"Stufe 2:","75m3/h"]
[null,"Stufe 3:","75m3/h"]
[]
[null,"MODBUS:",{"$f":"'ZUL ABL Baugruppe'!B3","v":"nein"}]
[]
["Schlafen","Stufe 1:","30m3/h"]
[null,"Stufe 2:","40m3/h"]
[null,"Stufe 3:","50m3/h"]
[]
[null,"MODBUS:",{"$f":"'ZUL ABL Baugruppe'!B3","v":"nein"}]
[]
["Anschlussschema",null,"Standard",null,null,null,null,null,null,"180° gedreht"]
["Gerät im Wohnzimmer"]
[]
[]
[]
[]
[]
[]
[]
[]
[]
[]
[]
[]
[]
[]
[]
[]
[]
[]
[]
[]
[]
[]
[]
[]
["Anschlussschema",null,"Standard",null,null,null,null,null,null,"180° gedreht"]
["Gerät im Schlafzimmer"]

{"sheet":"49","index":51,"n_rows":53,"n_cols":10,"rows_kept":53,"cut":false,"hidden":false,"merged":[[2,1,2,4]]}
[49,"4-Zimmer Wohnung","2 Geräte","rechts"]
["Projekt",{"$f":"'ZUL ABL Baugruppe'!B1","v":0}]
["BG ZUL/ABL",{"$f":"'ZUL ABL Baugruppe'!A55","v":0}]
[null,"ZUL","Schlafen","40m3/h"]
[null,null,"Kind","20m3/h"]
[null,null,"Kind","20m3/h"]
[null,null,"Wohnen","35m3/h"]
[]
[null,"ABL","Bad","40m3/h"]
[null,null,"WC","15m3/h"]
[null,null,"AR","10m3/h"]
[null,null,"Küche","50m3/h"]
[]
["Wohnen","Stufe 1:","50m3/h"]
[null,"Stufe 2:","75m3/h"]
[null,"Stufe 3:","75m3/h"]
[]
[null,"MODBUS:",{"$f":"'ZUL ABL Baugruppe'!B3","v":"nein"}]
[]
["Schlafen","Stufe 1:","30m3/h"]
[null,"Stufe 2:","40m3/h"]
[null,"Stufe 3:","50m3/h"]
[]
[null,"MODBUS:",{"$f":"'ZUL ABL Baugruppe'!B3","v":"nein"}]
[]
["Anschlussschema",null,"Standard",null,null,null,null,null,null,"180° gedreht"]
["Gerät im Wohnzimmer"]
[]
[]
[]
[]
[]
[]
[]
[]
[]
[]
[]
[]
[]
[]
[]
[]
[]
[]
[]
[]
[]
[]
[]
[]
["Anschlussschema",null,"Standard",null,null,null,null,null,null,"180° gedreht"]
["Gerät im Schlafzimmer"]

{"sheet":"50","index":52,"n_rows":53,"n_cols":10,"rows_kept":53,"cut":false,"hidden":false,"merged":[[2,1,2,4]]}
[50,"4-Zimmer Wohnung","2 Geräte","links"]
["Projekt",{"$f":"'ZUL ABL Baugruppe'!B1","v":0}]
["BG ZUL/ABL",{"$f":"'ZUL ABL Baugruppe'!A56","v":0}]
[null,"ZUL","Schlafen","40m3/h"]
[null,null,"Kind","20m3/h"]
[null,null,"Kind","20m3/h"]
[null,null,"Wohnen","35m3/h"]
[]
[null,"ABL","Bad","40m3/h"]
[null,null,"WC","15m3/h"]
[null,null,"AR","10m3/h"]
[null,null,"Küche","50m3/h"]
[]
["Wohnen","Stufe 1:","50m3/h"]
[null,"Stufe 2:","75m3/h"]
[null,"Stufe 3:","75m3/h"]
[]
[null,"MODBUS:",{"$f":"'ZUL ABL Baugruppe'!B3","v":"nein"}]
[]
["Schlafen","Stufe 1:","30m3/h"]
[null,"Stufe 2:","40m3/h"]
[null,"Stufe 3:","50m3/h"]
[]
[null,"MODBUS:",{"$f":"'ZUL ABL Baugruppe'!B3","v":"nein"}]
[]
["Anschlussschema",null,"Standard",null,null,null,null,null,null,"180° gedreht"]
["Gerät im Wohnzimmer"]
[]
[]
[]
[]
[]
[]
[]
[]
[]
[]
[]
[]
[]
[]
[]
[]
[]
[]
[]
[]
[]
[]
[]
[]
["Anschlussschema",null,"Standard",null,null,null,null,null,null,"180° gedreht"]
["Gerät im Schlafzimmer"]

{"sheet":"51","index":53,"n_rows":15,"n_cols":4,"rows_kept":15,"cut":false,"hidden":false,"merged":[[2,1,2,4]]}
[51,"1-Zimmer Wohnung","1 Gerät"]
["Projekt",{"$f":"'ABL Baugruppe'!B1","v":0}]
["BG ABL",{"$f":"'ABL Baugruppe'!A7","v":0}]
[null,"ZUL","Schlafen","40m3/h"]
[]
[null,"ABL","Bad","40m3/h"]
[]
[null,"Stufe 1:","30m3/h"]
[null,"Stufe 2:","40m3/h"]
[null,"Stufe 3:","50m3/h"]
[]
[null,"MODBUS:",{"$f":"'ABL Baugruppe'!B3","v":"nein"}]
[]
["Anschlussschema"]
["Gerät im Schlafzimmer"]

{"sheet":"52","index":54,"n_rows":16,"n_cols":4,"rows_kept":16,"cut":false,"hidden":false,"merged":[[2,1,2,4]]}
[52,"1-Zimmer Wohnung","1 Gerät"]
["Projekt",{"$f":"'ABL Baugruppe'!B1","v":0}]
["BG ABL",{"$f":"'ABL Baugruppe'!A8","v":0}]
[null,"ZUL","Schlafen","40m3/h"]
[]
[null,"ABL","Bad","30m3/h"]
[null,null,"WC","15m3/h"]
[]
[null,"Stufe 1:","30m3/h"]
[null,"Stufe 2:","45m3/h"]
[null,"Stufe 3:","60m3/h"]
[]
[null,"MODBUS:",{"$f":"'ABL Baugruppe'!B3","v":"nein"}]
[]
["Anschlussschema"]
["Gerät im Schlafzimmer"]

{"sheet":"Preisliste","index":55,"n_rows":38,"n_cols":2,"rows_kept":38,"cut":false,"hidden":false,"merged":[]}
["HOIBNKL70W1",165]
["KLL70BG25",1510]
["KLL70BGOR25",1620]
["KLL70E",1340]
["KLL70FLAAF",129]
["KLL70FLAAF180",129]
["KLL70LRZ",4.05]
["KLL70UAD",128]
["KLL70UIB",249]
["KLL70UIB180",249]
["KLL70UIBZA",276]
["KLL70VT25",115]
["KLL70VT252",175]
["KLL70WAER110",60]
["KLLAIRSF2",101.65]
["KLLAIRSF20",101.65]
["KLLBTM",97.05]
["KLLBTMTR",10.8]
["KLLBTS",394]
["KLLKUNI100",5.23]
["KLLRED125100",5.09]
["KLLV125756",53.46]
["KLLZABLV100",5.61]
["KLLZABLV125",6.95]
["KLLZKZ753",188]
["KLLZSCHL75",5.96]
["KLLZSN10075",13.91]
["KLLZSN125752",25.64]
["KLLZSNFL100",6.44]
["KLLZSNFL125",8.51]
["KLLZSNVL100",5.81]
["KLLZSNVL125",7.27]
["KLLZULVW100",39.24]
["KLLZULVW125",46.09]
["KLLZVEM75",5.19]
["KLLZZULV100",5.61]
["KLLZZULV125",6.95]
["PKEA75/45",16.78]

{"sheet":"Tabelle1","index":56,"n_rows":0,"n_cols":0,"rows_kept":0,"cut":false,"hidden":false,"merged":[]}